[Event "FIDE WCCC Girls-10 2024"]
[Site "Montesilvano"]
[Date "2024.11.18"]
[Round "2.25"]
[White "Billod-Laillet, Camille"]
[Black "Norkulova, Malika"]
[Result "0-1"]
[ECO "B23"]
[WhiteElo "1732"]
[BlackElo "1480"]
[PlyCount "136"]
[EventDate "2024.11.18"]
[EventType "swiss"]
[EventCountry "ITA"]
[TimeControl "5400+30"]

1. e4 {[%emt 0:00:04]} c5 {[%emt 0:00:06]} 2. Nc3 {[%emt 0:00:08]} a6 {[%emt 1:31:24]} 3. f4 {[%emt 0:00:11]} b5 {[%emt 0:00:00]} 4. Nf3 {[%emt 0:01:37]} Bb7 {[%emt 0:00:00]} 5. d3 {[%emt 0:01:10]} e6 {[%emt 0:00:00]} 6. a4 {[%emt 0:10:22]} b4 {[%emt 0:00:00]} 7. Ne2 {[%emt 0:00:51]} d5 {[%emt 0:00:00]} 8. Ng3 {[%emt 0:04:50]} Nf6 {[%emt 0:00:00]} 9. e5 {[%emt 0:01:20]} Nfd7 {[%emt 0:00:00]} 10. d4 {[%emt 0:04:39]} cxd4 {[%emt 0:00:00]} 11. Nxd4 {[%emt 0:01:43]} Bc5 {[%emt 0:00:00]} 12. Be3 {[%emt 0:06:48]} Qb6 {[%emt 0:00:00]} 13. a5 {[%emt 0:03:23]} Qc7 {[%emt 0:00:00]} 14. Bd3 {[%emt 0:07:27]} Nc6 {[%emt 0:00:00]} 15. Nxc6 {[%emt 0:20:34]} Bxe3 {[%emt 0:00:00]} 16. Nxb4 {[%emt 0:01:00]} Qc5 {[%emt 0:00:00]} 17. c3 {[%emt 0:04:47]} Bxf4 {[%emt 0:00:00]} 18. Qg4 {[%emt 0:09:31]} Qe3+ {[%emt 0:00:00]} 19. Ne2 {[%emt 0:00:42]} Bxe5 {[%emt 0:00:00]} 20. Qf3 {[%emt 0:02:03]} Qxf3 {[%emt 0:00:00]} 21. gxf3 {[%emt 0:00:11]} Bd6 {[%emt 0:00:00]} 22. Bc2 {[%emt 0:03:15]} Bxb4 {[%emt 0:00:00]} 23. cxb4 {[%emt 0:01:15]} Rc8 {[%emt 0:00:00]} 24. Bb3 {[%emt 0:06:23]} Ne5 {[%emt 0:00:00]} 25. f4 {[%emt 0:00:34]} Nd3+ {[%emt 0:00:00]} 26. Kd2 {[%emt 0:01:06]} Nxb4 {[%emt 0:00:00]} 27. Nd4 {[%emt 0:01:22]} Ke7 {[%emt 0:00:00]} 28. Rhe1 {[%emt 0:00:32]} Kd6 {[%emt 0:00:00]} 29. Re2 {[%emt 0:01:11]} Nc6 {[%emt 0:00:00]} 30. Nf3 {[%emt 0:00:25]} f6 {[%emt 0:00:00]} 31. Rae1 {[%emt 0:00:16]} Rhe8 {[%emt 0:00:00]} 32. Bc2 {[%emt 0:00:43]} g6 {[%emt 0:00:00]} 33. Rf1 {[%emt 0:01:23]} Nxa5 {[%emt 0:00:00]} 34. h4 {[%emt 0:00:36]} Rc4 {[%emt 0:00:00]} 35. h5 {[%emt 0:00:28]} Rxf4 {[%emt 0:00:00]} 36. hxg6 {[%emt 0:00:19]} hxg6 {[%emt 0:00:00]} 37. Bxg6 {[%emt 0:00:26]} Nc4+ {[%emt 0:00:00]} 38. Ke1 {[%emt 0:00:48]} Re7 {[%emt 0:00:00]} 39. Bh5 {[%emt 0:01:30]} d4 {[%emt 0:00:00]} 40. Ref2 {[%emt 0:00:45]} Bxf3 {[%emt 0:00:00]} 41. Bxf3 {[%emt 0:00:14]} Ne5 {[%emt 0:00:00]} 42. Be2 {[%emt 0:00:26]} Rxf2 {[%emt 0:20:00]} 43. Rxf2 {[%emt 0:00:12]} d3 {[%emt 0:00:00]} 44. Bd1 {[%emt 0:00:22]} f5 {[%emt 0:00:00]} 45. Kd2 {[%emt 0:00:47]} Rg7 {[%emt 0:00:00]} 46. Rf4 {[%emt 0:00:56]} Rg2+ {[%emt 0:00:00]} 47. Kc3 {[%emt 0:00:37]} Ng4 {[%emt 0:00:00]} 48. Rd4+ {[%emt 0:00:50]} Ke5 {[%emt 0:00:00]} 49. Rxd3 {[%emt 0:01:10]} Nf2 {[%emt 0:00:00]} 50. Re3+ {[%emt 0:00:51]} Ne4+ {[%emt 0:00:00]} 51. Kb3 {[%emt 0:00:54]} Rg3 {[%emt 0:00:00]} 52. Rxg3 {[%emt 0:00:15]} Nxg3 {[%emt 0:00:00]} 53. Kc3 {[%emt 0:00:14]} Ne4+ {[%emt 0:00:00]} 54. Kc4 {[%emt 0:00:17]} f4 {[%emt 0:00:00]} 55. Bf3 {[%emt 0:00:11]} Nd2+ {[%emt 0:00:00]} 56. Kd3 {[%emt 0:00:14]} Nxf3 {[%emt 0:00:00]} 57. Ke2 {[%emt 0:00:11]} Nd4+ {[%emt 0:00:00]} 58. Kf2 {[%emt 0:00:16]} Ke4 {[%emt 0:00:00]} 59. b4 {[%emt 0:00:20]} f3 {[%emt 0:00:00]} 60. Ke1 {[%emt 0:00:08]} Ke3 {[%emt 0:00:00]} 61. Kf1 {[%emt 0:00:10]} f2 {[%emt 0:00:00]} 62. b5 {[%emt 0:00:13]} axb5 {[%emt 0:00:00]} 63. Kg2 {[%emt 0:00:10]} Ke2 {[%emt 0:00:00]} 64. Kg3 {[%emt 0:00:05]} f1=Q {[%emt 0:00:00]} 65. Kg4 {[%emt 0:00:21]} Qf5+ {[%emt 0:00:00]} 66. Kg3 {[%emt 0:00:14]} Qg5+ {[%emt 0:00:00]} 67. Kh2 {[%emt 0:00:12]} Kf2 {[%emt 0:00:00]} 68. Kh3 {[%emt 0:00:12]} Qg3# {[%emt 0:00:00]} 0-1

[Event "FIDE WCCC Girls-10 2024"]
[Site "Montesilvano"]
[Date "2024.11.18"]
[Round "2.26"]
[White "Blakhina Viktoryia"]
[Black "Tran Hoang Bao An"]
[Result "0-1"]
[ECO "D00"]
[WhiteElo "1436"]
[BlackElo "1714"]
[PlyCount "118"]
[EventDate "2024.11.18"]
[EventType "swiss"]
[EventCountry "ITA"]
[TimeControl "5400+30"]

1. d4 {[%emt 0:00:04]} d5 {[%emt 0:00:18]} 2. Bf4 {[%emt 0:00:07]} Nf6 {[%emt 0:01:16]} 3. e3 {[%emt 0:00:08]} c5 {[%emt 0:00:08]} 4. dxc5 {[%emt 0:00:08]} e6 {[%emt 0:01:03]} 5. b4 {[%emt 0:00:14]} b6 {[%emt 0:00:18]} 6. Bb5+ {[%emt 0:13:04]} Bd7 {[%emt 0:01:54]} 7. Bxd7+ {[%emt 0:06:33]} Qxd7 {[%emt 0:01:22]} 8. Nf3 {[%emt 0:05:21]} bxc5 {[%emt 0:03:55]} 9. bxc5 {[%emt 0:04:06]} Bxc5 {[%emt 0:04:30]} 10. O-O {[%emt 0:02:31]} Nc6 {[%emt 0:07:54]} 11. Nc3 {[%emt 0:03:12]} O-O {[%emt 0:04:51]} 12. Rb1 {[%emt 0:05:38]} Qe7 {[%emt 0:05:42]} 13. Ne5 {[%emt 0:04:55]} Nxe5 {[%emt 0:03:26]} 14. Bxe5 {[%emt 0:00:08]} Bd6 {[%emt 0:02:44]} 15. Qd4 {[%emt 0:06:26]} Bxe5 {[%emt 0:06:09]} 16. Qxe5 {[%emt 0:00:14]} Nd7 {[%emt 0:04:46]} 17. Qd4 {[%emt 0:07:41]} Nb6 {[%emt 0:04:46]} 18. Rb3 {[%emt 0:05:25]} Rfd8 {[%emt 0:02:51]} 19. Rd1 {[%emt 0:04:11]} Rac8 {[%emt 0:01:07]} 20. h3 {[%emt 0:07:52]} e5 {[%emt 0:03:06]} 21. Qd3 {[%emt 0:03:47]} d4 {[%emt 0:03:33]} 22. exd4 {[%emt 0:02:06]} Rxd4 {[%emt 0:00:25]} 23. Qe2 {[%emt 0:01:18]} Rxd1+ {[%emt 0:03:12]} 24. Qxd1 {[%emt 0:01:58]} g6 {[%emt 0:00:38]} 25. Qe2 {[%emt 0:02:35]} Qc7 {[%emt 0:13:38]} 26. Qe3 {[%emt 0:10:28]} Nc4 {[%emt 0:00:45]} 27. Qg3 {[%emt 0:01:19]} Nd2 {[%emt 0:00:14]} 28. Ra3 {[%emt 0:00:37]} Qc5 {[%emt 0:01:04]} 29. Qg4 {[%emt 0:01:09]} Rb8 {[%emt 0:00:30]} 30. Qa4 {[%emt 0:00:32]} Rb7 {[%emt 0:01:57]} 31. Qa6 {[%emt 0:00:45]} Rc7 {[%emt 0:01:17]} 32. Nb5 {[%emt 0:00:54]} Rc6 {[%emt 0:00:49]} 33. Qxa7 {[%emt 0:00:27]} Qxb5 {[%emt 0:00:13]} 34. Qa8+ {[%emt 0:00:49]} Kg7 {[%emt 0:00:07]} 35. Kh2 {[%emt 0:00:33]} Rd6 {[%emt 0:00:37]} 36. Ra5 {[%emt 0:00:38]} Qc6 {[%emt 0:00:41]} 37. Qa7 {[%emt 0:00:32]} Qb6 {[%emt 0:00:07]} 38. Qxb6 {[%emt 0:00:28]} Rxb6 {[%emt 0:00:05]} 39. Rxe5 {[%emt 0:00:06]} Rb2 {[%emt 0:00:05]} 40. a4 {[%emt 0:00:54]} Rxc2 41. Re8 {[%emt 0:00:32]} Nb3 {[%emt 0:00:16]} 42. Rb8 {[%emt 0:00:31]} Nd4 {[%emt 0:00:09]} 43. Kg1 {[%emt 0:00:29]} Ra2 {[%emt 0:00:07]} 44. Ra8 {[%emt 0:00:09]} Ra3 {[%emt 0:00:11]} 45. Ra6 {[%emt 0:00:34]} Nb3 {[%emt 0:00:25]} 46. Ra7 {[%emt 0:00:45]} Nc5 {[%emt 0:00:10]} 47. a5 {[%emt 0:00:15]} Nb3 {[%emt 0:00:05]} 48. a6 {[%emt 0:00:20]} Nc5 {[%emt 0:00:04]} 49. Ra8 {[%emt 0:00:22]} Rxa6 {[%emt 0:00:10]} 50. Rc8 {[%emt 0:00:39]} Ne6 {[%emt 0:00:05]} 51. Rc4 {[%emt 0:00:32]} Kf6 {[%emt 0:00:14]} 52. Kf1 {[%emt 0:00:08]} Ke5 {[%emt 0:00:04]} 53. Ke2 {[%emt 0:00:25]} f5 {[%emt 0:00:03]} 54. f4+ {[%emt 0:01:08]} Nxf4+ {[%emt 0:00:08]} 55. Kf3 {[%emt 0:00:40]} Ra3+ {[%emt 0:00:06]} 56. Kf2 {[%emt 0:00:14]} Ra2+ {[%emt 0:00:37]} 57. Kf3 {[%emt 0:00:14]} Nxg2 {[%emt 0:00:08]} 58. Rc7 {[%emt 0:00:43]} Ne1+ {[%emt 0:00:21]} 59. Ke3 {[%emt 0:00:13]} f4# {[%emt 0:24:34] Kd4+} 0-1

[Event "FIDE WCCC Girls-10 2024"]
[Site "Montesilvano"]
[Date "2024.11.18"]
[Round "2.27"]
[White "Sun, Yucan(Sd)"]
[Black "Mukhorina, Mariya Dm"]
[Result "0-1"]
[ECO "B22"]
[WhiteElo "1725"]
[BlackElo "1567"]
[PlyCount "78"]
[EventDate "2024.11.18"]
[EventType "swiss"]
[EventCountry "ITA"]
[TimeControl "5400+30"]

1. e4 {[%emt 0:00:03]} c5 {[%emt 0:00:13]} 2. c3 {[%emt 0:00:11]} d5 {[%emt 0:00:12]} 3. exd5 {[%emt 0:00:10]} Qxd5 {[%emt 0:00:02]} 4. d4 {[%emt 0:00:12]} Nf6 {[%emt 0:00:55]} 5. Nf3 {[%emt 0:00:13]} e6 {[%emt 0:00:04]} 6. Na3 {[%emt 0:01:24]} Qd8 {[%emt 0:01:48]} 7. Nc4 {[%emt 0:06:41]} Nc6 {[%emt 0:01:51]} 8. Be3 {[%emt 0:02:21]} cxd4 {[%emt 0:02:47]} 9. Nxd4 {[%emt 0:01:03]} Nxd4 {[%emt 0:03:49]} 10. Bxd4 {[%emt 0:00:17]} Be7 {[%emt 0:03:55]} 11. Bd3 {[%emt 0:01:15]} O-O {[%emt 0:00:45]} 12. O-O {[%emt 0:01:17]} b6 {[%emt 0:09:15]} 13. Qf3 {[%emt 0:04:56]} Rb8 {[%emt 0:03:44]} 14. Be5 {[%emt 0:02:59]} Bb7 {[%emt 0:04:15]} 15. Qh3 {[%emt 0:00:21]} h6 {[%emt 0:03:23]} 16. Bxb8 {[%emt 0:00:25]} Qxb8 {[%emt 0:00:01]} 17. a4 {[%emt 0:01:28]} Nd5 {[%emt 0:08:25]} 18. Be4 {[%emt 0:04:31]} Bf6 {[%emt 0:10:09]} 19. Qf3 {[%emt 0:02:45]} Ba6 {[%emt 0:05:17]} 20. Bd3 {[%emt 0:08:30]} Bb7 {[%emt 0:04:56]} 21. Qe4 {[%emt 0:12:22]} g6 {[%emt 0:01:15]} 22. Qe1 {[%emt 0:00:24]} Nf4 {[%emt 0:11:20]} 23. Qe3 {[%emt 0:05:17]} Bxg2 {[%emt 0:01:26]} 24. Rfe1 {[%emt 0:11:22]} Bg5 {[%emt 0:10:42]} 25. Qg3 {[%emt 0:06:23]} Qa8 {[%emt 0:02:29]} 26. f3 {[%emt 0:00:56]} Nxd3 {[%emt 0:03:23]} 27. Qxg2 {[%emt 0:00:32]} Nxe1 {[%emt 0:00:03]} 28. Rxe1 {[%emt 0:00:04]} Qc6 {[%emt 0:00:57]} 29. b3 {[%emt 0:00:35]} a6 {[%emt 0:00:51]} 30. Re4 {[%emt 0:07:11]} b5 {[%emt 0:01:04]} 31. axb5 {[%emt 0:00:32]} axb5 {[%emt 0:00:08]} 32. Ne5 {[%emt 0:00:15]} Qxc3 {[%emt 0:01:28]} 33. h4 {[%emt 0:01:58]} Qc1+ {[%emt 0:00:12]} 34. Kh2 {[%emt 0:00:31]} Bf4+ {[%emt 0:00:10]} 35. Kh3 {[%emt 0:00:30]} Bxe5 {[%emt 0:00:21]} 36. Rxe5 {[%emt 0:00:03]} Qf4 {[%emt 0:00:27]} 37. Re4 {[%emt 0:00:10]} Qf5+ {[%emt 0:00:12]} 38. Kh2 {[%emt 0:00:11]} Rd8 {[%emt 0:00:18]} 39. b4 {[%emt 0:00:17]} Rd3 {[%emt 0:01:07]} 0-1

[Event "FIDE WCCC Girls-10 2024"]
[Site "Montesilvano"]
[Date "2024.11.18"]
[Round "2.28"]
[White "Macchia-Shahar, Yali"]
[Black "Nguyen Doan, Bao Anh Angelina"]
[Result "0-1"]
[ECO "B13"]
[WhiteElo "1564"]
[BlackElo "1628"]
[PlyCount "46"]
[EventDate "2024.11.18"]
[EventType "swiss"]
[EventCountry "ITA"]
[TimeControl "5400+30"]

1. e4 {[%emt 0:00:05]} c6 {[%emt 0:00:06]} 2. Nf3 {[%emt 0:00:07]} d5 {[%emt 0:00:04]} 3. exd5 {[%emt 0:00:53]} cxd5 {[%emt 0:00:05]} 4. d4 {[%emt 0:00:50]} Nc6 {[%emt 0:00:07]} 5. Bd3 {[%emt 0:01:27]} Bg4 {[%emt 0:00:52]} 6. c3 {[%emt 0:01:42]} Qc7 {[%emt 0:01:22]} 7. h3 {[%emt 0:01:49]} Bh5 {[%emt 0:00:14]} 8. O-O {[%emt 0:00:44]} e6 {[%emt 0:00:59]} 9. Re1 {[%emt 0:04:52]} Bd6 {[%emt 0:02:19]} 10. Qe2 {[%emt 0:04:18]} Nf6 {[%emt 0:03:44]} 11. Qe3 {[%emt 0:03:50]} Bxf3 {[%emt 0:05:20]} 12. Qxf3 {[%emt 0:01:03]} O-O-O {[%emt 0:08:05]} 13. Nd2 {[%emt 0:04:57]} Kb8 {[%emt 0:08:52]} 14. a3 {[%emt 0:05:53]} e5 {[%emt 0:06:13]} 15. dxe5 {[%emt 0:11:29]} Nxe5 {[%emt 0:00:47]} 16. Qe2 {[%emt 0:06:36]} Rhe8 {[%emt 0:05:02]} 17. Kf1 {[%emt 0:06:49]} Neg4 {[%emt 0:08:54]} 18. Qd1 {[%emt 0:03:18]} Nxf2 {[%emt 0:02:14]} 19. Qf3 {[%emt 0:03:07]} Nxd3 {[%emt 0:06:50]} 20. Rxe8 {[%emt 0:02:09]} Rxe8 {[%emt 0:00:46]} 21. Qxd3 {[%emt 0:01:56]} Bc5 {[%emt 0:05:36]} 22. Nb3 {[%emt 0:04:39]} Bb6 {[%emt 0:14:05]} 23. Qf3 {[%emt 0:06:08]} Qc4+ {[%emt 0:00:18]} 0-1

[Event "FIDE WCCC Girls-10 2024"]
[Site "Montesilvano"]
[Date "2024.11.18"]
[Round "2.29"]
[White "Rosset, Anna"]
[Black "Deviatkova, Diana"]
[Result "1-0"]
[ECO "B22"]
[WhiteElo "1814"]
[BlackElo "1503"]
[PlyCount "89"]
[EventDate "2024.11.18"]
[EventType "swiss"]
[EventCountry "ITA"]
[TimeControl "5400+30"]

1. e4 {[%emt 0:00:00]} c5 {[%emt 0:00:07]} 2. c3 {[%emt 0:00:11]} d6 {[%emt 0:00:24]} 3. d4 {[%emt 0:01:00]} cxd4 {[%emt 0:00:07]} 4. cxd4 {[%emt 0:00:05]} e6 {[%emt 0:00:18]} 5. Nc3 {[%emt 0:00:46]} Nf6 {[%emt 0:02:23]} 6. Nf3 {[%emt 0:01:42]} Be7 {[%emt 0:00:49]} 7. Bd3 {[%emt 0:00:31]} Nbd7 {[%emt 0:01:01]} 8. O-O {[%emt 0:00:26]} b6 {[%emt 0:00:29]} 9. Bf4 {[%emt 0:05:36]} Bb7 {[%emt 0:00:42]} 10. Rc1 {[%emt 0:00:43]} O-O {[%emt 0:01:17]} 11. Re1 {[%emt 0:03:48]} h6 {[%emt 0:02:55]} 12. Bb1 {[%emt 0:02:22]} Re8 {[%emt 0:01:40]} 13. Nb5 {[%emt 0:01:45]} e5 {[%emt 0:02:34]} 14. dxe5 {[%emt 0:01:06]} dxe5 {[%emt 0:00:10]} 15. Nxe5 {[%emt 0:02:09]} Nxe5 {[%emt 0:01:50]} 16. Bxe5 {[%emt 0:00:20]} Bc5 {[%emt 0:00:22]} 17. Qxd8 {[%emt 0:03:53]} Raxd8 {[%emt 0:00:10]} 18. Bxf6 {[%emt 0:01:13]} gxf6 {[%emt 0:00:06]} 19. a3 {[%emt 0:02:23]} Rd2 {[%emt 0:00:59]} 20. Rf1 {[%emt 0:18:19]} Rxb2 {[%emt 0:00:39]} 21. a4 {[%emt 0:00:47]} Bxe4 {[%emt 0:00:29]} 22. Nc3 {[%emt 0:02:59]} Bxb1 {[%emt 0:05:38]} 23. Rxb1 {[%emt 0:00:26]} Rc2 {[%emt 0:00:11]} 24. Nd5 {[%emt 0:02:16]} Kg7 {[%emt 0:00:36]} 25. Nf4 {[%emt 0:01:02]} Rd8 {[%emt 0:01:35]} 26. Nh5+ {[%emt 0:07:37]} Kg6 {[%emt 0:00:29]} 27. Nf4+ {[%emt 0:00:06]} Kf5 {[%emt 0:00:15]} 28. Nh3 {[%emt 0:00:32]} Rdd2 {[%emt 0:01:48]} 29. Rb3 {[%emt 0:00:34]} Ra2 {[%emt 0:00:45]} 30. Rf3+ {[%emt 0:00:18]} Ke5 {[%emt 0:00:37]} 31. g3 {[%emt 0:02:42]} Rxa4 {[%emt 0:00:24]} 32. Re1+ {[%emt 0:00:17]} Kd5 {[%emt 0:01:15]} 33. Rxf6 {[%emt 0:00:42]} Raa2 {[%emt 0:00:42]} 34. Rxf7 {[%emt 0:00:44]} b5 {[%emt 0:00:17]} 35. Rc1 {[%emt 0:04:20]} Bb6 {[%emt 0:02:09]} 36. Rf5+ {[%emt 0:01:24]} Ke6 {[%emt 0:00:17]} 37. Rxb5 {[%emt 0:12:50]} Bxf2+ {[%emt 0:00:11]} 38. Nxf2 {[%emt 0:00:05]} Rxf2 {[%emt 1:12:50]} 39. Rc6+ {[%emt 0:01:52]} Kd7 {[%emt 0:00:00]} 40. Rxh6 {[%emt 0:00:36]} Rfc2 {[%emt 0:00:00]} 41. Rb7+ {[%emt 0:00:49]} Kc8 {[%emt 0:00:00]} 42. Rb1 {[%emt 0:00:04]} Kd8 {[%emt 0:00:00]} 43. Rh7 {[%emt 0:00:31]} Ke8 {[%emt 0:00:00]} 44. Rb8+ {[%emt 0:00:08]} Rc8 {[%emt 0:00:00]} 45. Rxc8# {[%emt 0:00:03]} 1-0

[Event "FIDE WCCC Girls-10 2024"]
[Site "Montesilvano"]
[Date "2024.11.18"]
[Round "2.30"]
[White "Bakhshi, Rana"]
[Black "Kiss, Villo"]
[Result "1-0"]
[ECO "D85"]
[WhiteElo "1727"]
[BlackElo "1492"]
[PlyCount "95"]
[EventDate "2024.11.18"]
[EventType "swiss"]
[EventCountry "ITA"]
[TimeControl "5400+30"]

1. d4 {[%emt 0:00:35]} Nf6 {[%emt 0:00:10]} 2. c4 {[%emt 0:01:02]} g6 {[%emt 0:00:15]} 3. Nc3 {[%emt 0:01:07]} d5 {[%emt 0:00:15]} 4. cxd5 {[%emt 0:01:15]} Nxd5 {[%emt 0:00:19]} 5. e4 {[%emt 0:02:13]} Nxc3 {[%emt 0:00:17]} 6. bxc3 {[%emt 0:01:25]} Bg7 {[%emt 0:00:29]} 7. Nf3 {[%emt 0:01:21]} c5 {[%emt 0:00:45]} 8. Bb5+ {[%emt 0:01:36]} Nd7 {[%emt 0:02:14]} 9. O-O {[%emt 0:01:51]} O-O {[%emt 0:00:56]} 10. Re1 {[%emt 0:01:53]} Qa5 {[%emt 0:01:03]} 11. a4 {[%emt 0:08:42]} Qxc3 {[%emt 0:19:50]} 12. Bd2 {[%emt 0:04:21]} Qb2 {[%emt 0:07:30]} 13. Rb1 {[%emt 0:04:06]} Qa2 {[%emt 0:05:18]} 14. Rb3 {[%emt 0:06:09]} a6 {[%emt 0:06:40]} 15. Bd3 {[%emt 0:07:28]} Qxa4 {[%emt 0:00:40]} 16. Bc2 {[%emt 0:06:03]} Qc6 {[%emt 0:01:29]} 17. d5 {[%emt 0:01:20]} Qc7 {[%emt 0:01:37]} 18. h4 {[%emt 0:00:47]} b5 {[%emt 0:08:29]} 19. h5 {[%emt 0:01:20]} e6 {[%emt 0:10:53]} 20. hxg6 {[%emt 0:03:59]} fxg6 {[%emt 0:00:20]} 21. dxe6 {[%emt 0:00:05]} Ne5 {[%emt 0:00:55]} 22. Nxe5 {[%emt 0:03:09]} Qxe5 {[%emt 0:05:22]} 23. Bc3 {[%emt 0:01:55]} Qxe6 {[%emt 0:04:47]} 24. Bxg7 {[%emt 0:00:23]} Kxg7 {[%emt 0:00:24]} 25. Qd2 {[%emt 0:00:26]} Bb7 {[%emt 0:01:25]} 26. Rh3 {[%emt 0:00:24]} h5 {[%emt 0:01:49]} 27. Qg5 {[%emt 0:00:55]} Qf6 {[%emt 0:09:14]} 28. Qe3 {[%emt 0:03:16]} Qf4 {[%emt 0:04:04]} 29. Qc3+ {[%emt 0:01:22]} Rf6 {[%emt 0:02:51]} 30. Rf3 {[%emt 0:00:15]} Qg5 {[%emt 0:01:49]} 31. Rd1 {[%emt 0:00:28]} Bc6 {[%emt 0:00:50]} 32. Rd6 {[%emt 0:00:37]} Raf8 {[%emt 0:02:09]} 33. Rxc6 {[%emt 0:01:11]} Qc1+ {[%emt 0:01:09]} 34. Kh2 {[%emt 0:00:23]} Qg5 {[%emt 0:00:32]} 35. Rfxf6 {[%emt 0:00:50]} Rxf6 {[%emt 0:00:09]} 36. Rc7+ {[%emt 0:00:12]} Kh6 {[%emt 0:00:23]} 37. Qe3 {[%emt 0:01:40]} Rf4 {[%emt 0:01:07]} 38. g3 {[%emt 0:01:01]} Rg4 {[%emt 0:00:17]} 39. Qxg5+ {[%emt 0:00:15]} Rxg5 {[%emt 0:00:06]} 40. f4 {[%emt 0:00:12]} Rg4 {[%emt 0:00:33]} 41. Bd1 {[%emt 0:00:19]} c4 {[%emt 0:00:26]} 42. e5 {[%emt 0:00:14]} a5 {[%emt 0:00:30]} 43. e6 {[%emt 0:00:13]} a4 {[%emt 0:00:12]} 44. e7 {[%emt 0:00:04]} h4 {[%emt 0:00:34]} 45. Bxg4 {[%emt 0:00:15]} hxg3+ {[%emt 0:00:09]} 46. Kxg3 {[%emt 0:00:10]} g5 {[%emt 0:00:23]} 47. e8=Q {[%emt 0:00:30]} a3 {[%emt 0:00:26]} 48. Qe6# {[%emt 0:00:16]} 1-0

[Event "FIDE WCCC Girls-10 2024"]
[Site "Montesilvano"]
[Date "2024.11.18"]
[Round "2.31"]
[White "Tu, Tiffany"]
[Black "Lisboa, Maria Eduarda Mazzar"]
[Result "1-0"]
[ECO "B40"]
[WhiteElo "1687"]
[BlackElo "1490"]
[PlyCount "135"]
[EventDate "2024.11.18"]
[EventType "swiss"]
[EventCountry "ITA"]
[TimeControl "5400+30"]

1. e4 {[%emt 0:00:03]} e6 {[%emt 0:00:10]} 2. Nf3 {[%emt 0:00:09]} d5 {[%emt 0:00:05]} 3. e5 {[%emt 0:00:07]} c5 {[%emt 0:00:14]} 4. c3 {[%emt 0:00:08]} Nc6 {[%emt 0:00:35]} 5. Na3 {[%emt 0:00:52]} a6 {[%emt 0:01:38]} 6. Nc2 {[%emt 0:00:11]} Qb6 {[%emt 0:02:08]} 7. d4 {[%emt 0:00:39]} cxd4 {[%emt 0:01:02]} 8. cxd4 {[%emt 0:00:19]} Nge7 {[%emt 0:04:39]} 9. Bd3 {[%emt 0:01:20]} Bd7 {[%emt 0:01:40]} 10. O-O {[%emt 0:00:54]} Ng6 {[%emt 0:02:28]} 11. Qe2 {[%emt 0:02:19]} Be7 {[%emt 0:05:02]} 12. Bd2 {[%emt 0:02:48]} O-O {[%emt 0:05:45]} 13. b3 {[%emt 0:08:48]} Rac8 {[%emt 0:05:02]} 14. Rac1 {[%emt 0:05:01]} Nb4 {[%emt 0:27:59]} 15. Nxb4 {[%emt 0:06:29]} Bxb4 {[%emt 0:00:14]} 16. Bxb4 {[%emt 0:03:10]} Qxb4 {[%emt 0:00:10]} 17. Qe3 {[%emt 0:04:25]} Qe7 {[%emt 0:06:37]} 18. h3 {[%emt 0:06:29]} Rc6 {[%emt 0:14:34]} 19. Rxc6 {[%emt 0:03:14]} Bxc6 {[%emt 0:00:06]} 20. Rc1 {[%emt 0:04:05]} Rc8 {[%emt 0:02:25]} 21. Qd2 {[%emt 0:06:09]} Qd8 {[%emt 0:05:49]} 22. Ng5 {[%emt 0:02:28]} Qe7 {[%emt 0:03:52]} 23. f4 {[%emt 0:02:17]} f6 {[%emt 0:03:25]} 24. Nf3 {[%emt 0:02:45]} f5 {[%emt 0:02:16]} 25. Kh2 {[%emt 0:07:50]} Nh4 {[%emt 0:01:54]} 26. Qf2 {[%emt 0:01:24]} Nxf3+ {[%emt 0:00:13]} 27. Qxf3 {[%emt 0:00:11]} Qa3 {[%emt 0:00:10]} 28. Rc2 {[%emt 0:00:56]} Qf8 {[%emt 0:00:40]} 29. Qg3 {[%emt 0:03:50]} Bd7 {[%emt 0:00:37]} 30. Rxc8 {[%emt 0:01:13]} Qxc8 {[%emt 0:00:06]} 31. Qe1 {[%emt 0:00:46]} Qc7 {[%emt 0:00:44]} 32. Qd2 {[%emt 0:00:58]} Qb6 {[%emt 0:00:40]} 33. Qc3 {[%emt 0:00:38]} Bc6 {[%emt 0:00:21]} 34. Be2 {[%emt 0:03:26]} g6 {[%emt 0:01:38]} 35. g4 {[%emt 0:01:03]} a5 {[%emt 0:01:10]} 36. gxf5 {[%emt 0:01:38]} exf5 {[%emt 0:01:04]} 37. Bf3 {[%emt 0:00:33]} Qb4 {[%emt 0:00:30]} 38. Qxb4 {[%emt 0:00:22]} axb4 {[%emt 0:01:48]} 39. Kg2 {[%emt 0:00:10]} h6 {[%emt 0:00:00]} 40. h4 {[%emt 0:00:09]} h5 {[%emt 0:00:00]} 41. Kf2 {[%emt 0:00:19]} Kf7 {[%emt 0:00:00]} 42. Ke3 {[%emt 0:00:30]} Ke6 {[%emt 0:00:00]} 43. Be2 {[%emt 0:00:30]} b5 {[%emt 0:00:00]} 44. Kd3 {[%emt 0:00:15]} Kd7 {[%emt 0:00:23]} 45. Kc2 {[%emt 0:00:14]} Kc7 {[%emt 0:00:08]} 46. Kb2 {[%emt 0:00:34]} Kb6 {[%emt 0:00:09]} 47. Bf3 {[%emt 0:01:03]} Bb7 {[%emt 0:01:37]} 48. a3 {[%emt 0:02:57]} bxa3+ {[%emt 0:00:07]} 49. Kxa3 {[%emt 0:00:07]} Ka5 {[%emt 0:00:03]} 50. e6 {[%emt 0:03:10]} b4+ {[%emt 0:00:11]} 51. Kb2 {[%emt 0:00:21]} Kb6 {[%emt 0:00:27]} 52. e7 {[%emt 0:00:33]} Bc6 {[%emt 0:00:03]} 53. Bxd5 {[%emt 0:00:10]} Be8 {[%emt 0:00:16]} 54. Kc2 {[%emt 0:03:52]} Ka5 {[%emt 0:00:54]} 55. Kd3 {[%emt 0:01:02]} Kb5 {[%emt 0:00:18]} 56. Be6 {[%emt 0:00:55]} Kc6 {[%emt 0:01:15]} 57. Kc4 {[%emt 0:01:39]} Kd6 {[%emt 0:00:08]} 58. d5 {[%emt 0:00:06]} Kxe7 {[%emt 0:00:14]} 59. Kxb4 {[%emt 0:00:07]} Kd6 {[%emt 0:00:22]} 60. Ka5 {[%emt 0:01:01]} Bd7 {[%emt 0:02:55]} 61. Bxd7 {[%emt 0:00:51]} Kxd7 {[%emt 0:00:04]} 62. b4 {[%emt 0:00:45]} Kd6 {[%emt 0:01:44]} 63. b5 {[%emt 0:00:10]} g5 {[%emt 0:00:11]} 64. fxg5 {[%emt 0:00:30]} f4 {[%emt 0:00:04]} 65. b6 {[%emt 0:00:06]} Kd7 {[%emt 0:00:10]} 66. b7 {[%emt 0:00:55]} Kc7 {[%emt 0:00:01]} 67. Ka6 {[%emt 0:00:27]} Kb8 {[%emt 0:00:06]} 68. d6 {[%emt 0:00:14]} 1-0